Cogmind - Beta 13 *** ADVENTURER MODE // 2024.07.06 @ 17:29:11 Player: Olexender Result: Destroyed by B-75 Beast with Magnetic Acceleration Cannon Performance ------------- Evolutions (4) 2000 Regions Visited (6) 1200 Robots Destroyed (125) 625 Value Destroyed (3678) 3678 Prototype IDs (9) 180 Alien Tech Used (0) 0 Bonus (69) 69 TOTAL SCORE: 7752 Bonus ------- High Alert Combat Kills 69 Cogmind --------- Core Integrity 0/850 Matter 157/300 Energy 100/100 System Corruption 0% Temperature Cool (12) Movement Core (350) Ox6 Location -6/Extension Parts ------- > --- POWER (2) -------- (None) > --- PROPULSION (5) --- (None) > --- UTILITY (5) ------ Large Storage Unit > --- WEAPON (3) ------- (None) > --- INVENTORY (15) --- High-capacity Storage Unit Huge Storage Unit Improved Energy Well (400) Improved Energy Well (400) High-capacity Matter Pod (200) Matter Filter Peak State ------------ > --- POWER ------------ Micro Nuclear Core Fission Core > --- PROPULSION ------- Aluminum Leg Carbon-fiber Leg Carbon-fiber Leg VSS Leg Improved Titanium Leg > --- UTILITY ---------- Cooling System Large Storage Unit Improved Energy Well Hardened Medium Armor Plating Improved Shield Generator > --- WEAPON ----------- Particle Gun Katana Chainsword > --- INVENTORY -------- Light Deuterium Engine Carbon-fiber Leg Power Amplifier Improved Cryofiber Web High-capacity Storage Unit Huge Storage Unit High-capacity Battery High-capacity Matter Pod Structural Scanner Matter Filter Enhanced Autogun Enhanced Autogun Enhanced Autogun Gauss Rifle Improved Concussive RPG [Rating: 53] Favorites ----------- Power Light Deuterium Engine Engine Light Deuterium Engine Power Core Light Nuclear Core Propulsion Aluminum Leg Leg Aluminum Leg Utility Large Storage Unit Device Cooling System Storage Large Storage Unit Protection Hardened Medium Armor Plating Weapon Particle Gun Energy Gun Particle Gun Ballistic Gun Enhanced Autogun Ballistic Cannon Assault Cannon Launcher Improved Concussive RPG Impact Weapon Hammer Slashing Weapon Chainsword Special Melee Weapon Datajack Build | -11 -10 -9 -8 -7 -6 -6 ------- Run | Yrd Mat Mat Mat Fac Fac Ext Slots Evolved 8 | . . 2 2 2 2 . Power 1 | . . . 1 . . . Propulsion 3 | . . 1 1 . 1 . Utility 3 | . . 1 . 1 1 . Weapon 1 | . . . . 1 . . Parts Attached 90 | 5 11 14 25 10 9 16 Power 13 | 1 1 1 6 2 1 1 Engine 10 | 1 1 1 5 1 . 1 Core 3 | . . . 1 1 1 . Reactor . | . . . . . . . Propulsion 27 | 2 3 7 7 3 4 1 Treads . | . . . . . . . Leg 27 | 2 3 7 7 3 4 1 Wheel . | . . . . . . . Hover . | . . . . . . . Flight . | . . . . . . . Utility 21 | . 1 4 6 2 4 4 Device 13 | . . 1 4 2 3 3 Storage 3 | . 1 1 . . . 1 Processor . | . . . . . . . Hackware . | . . . . . . . Protection 5 | . . 2 2 . 1 . Artifact . | . . . . . . . Weapon 29 | 2 6 2 6 3 . 10 Energy Gun 4 | . . . 3 1 . . Energy Cannon . | . . . . . . . Ballistic Gun 16 | 2 4 2 1 2 . 5 Ballistic Cannon 2 | . . . 2 . . . Launcher 1 | . . . . . . 1 Special Weapon . | . . . . . . . Impact Weapon 1 | . 1 . . . . . Slashing Weapon 4 | . . . . . . 4 Piercing Weapon . | . . . . . . . Special Melee Weapon 1 | . 1 . . . . . Unidentified Prototypes 3 | . 1 . 1 . . 1 Parts Lost 34 | . . 2 8 2 1 21 Power 9 | . . 1 4 1 . 3 Propulsion 8 | . . 1 2 . . 5 Utility 8 | . . . 1 . 1 6 Weapon 9 | . . . 1 1 . 7 Highest Loss Streak 21 | . . 1 3 2 1 21 To Critical Strikes . | . . . . . . . Average Slot Usage (%) 89 | . 82 93 88 87 99 91 Engine 10 | . 14 10 11 8 4 . Core 2 | . . . 2 5 8 11 Leg 29 | . 28 33 29 18 33 28 Device 8 | . . 3 9 15 20 19 Storage 9 | . 11 11 9 7 6 6 Protection 7 | . . 12 8 7 5 5 Energy Gun 5 | . . . 8 6 6 5 Ballistic Gun 12 | . 27 22 3 15 13 7 Ballistic Cannon 2 | . . . 5 . . . Naked Turns . | . . . . . . . Heaviest Build 61 | 8 23 43 53 57 61 61 Greatest Support 72 | 20 20 33 47 52 72 72 Greatest Overweight (x) 9 | . 1 1 2 2 . 9 Average Overweight (x) . | . . . 1 1 . . Largest Inventory Capacity 15 | 5 10 15 15 15 15 15 Average Capacity 14 | 5 9 14 15 15 15 15 Most Carried 15 | 5 10 15 15 15 15 15 Average Carried 12 | 1 6 11 14 13 14 13 Final Capacity 15 | 5 10 15 15 15 15 15 Final Carried 15 | . 10 14 15 15 14 6 Class Distribution -------------------- 42% | Scavenger-Mutant 36% | Mutant 21% | Scavenger-Tank Dominant Class ---------------- Mutant | -10/Materials Mutant | -9/Materials Scavenger-Mutant | -8/Materials Scavenger-Tank | -7/Factory Scavenger-Tank | -6/Factory Scavenger-Tank | -6/Extension Resources | -11 -10 -9 -8 -7 -6 -6 ----------- Run | Yrd Mat Mat Mat Fac Fac Ext Matter Collected 2958 | 208 412 611 1074 182 373 98 Remotely . | . . . . . . . Salvage Created 4122 | . 412 1120 1373 244 608 365 Parts 258 | . 30 73 87 16 33 19 Haulers Intercepted 1 | . . . 1 . . . Recyclers Shooed 4 | . . 1 1 . 1 1 Parts Field Recycled . | . . . . . . . Retrieved Matter . | . . . . . . . Parts Self-Destructed . | . . . . . . . Prevented . | . . . . . . . Kills | -11 -10 -9 -8 -7 -6 -6 ------- Run | Yrd Mat Mat Mat Fac Fac Ext Combat Hostiles Destroyed 95 | . 11 28 37 7 7 5 Guns 80 | . 11 28 22 7 7 5 Cannons 15 | . . . 15 . . . Classes Destroyed 13 | . 3 6 3 1 . . Worker 6 | . . 1 3 . 2 . Builder 4 | . . 1 . . . 3 Hauler 1 | . . . 1 . . . Recycler 3 | . . . 1 . 1 1 Mechanic 1 | . . 1 . . . . Operator 3 | . . 1 2 . . . Watcher 12 | . 2 4 5 . 1 . Swarmer 29 | . 3 8 12 3 . 3 Grunt 46 | . 8 14 15 2 5 2 Brawler 1 | . . . 1 . . . Duelist 2 | . . 2 . . . . Sentry 14 | . . 4 9 . 1 . Programmer 3 | . . . . 2 1 . Best Kill Streak 7 | . 6 7 5 3 6 6 Combat Bots Only 6 | . 6 5 5 3 4 3 Max Kills in Single Turn 2 | . 2 1 1 2 2 1 Gunslinging 1 | . 1 . . 1 . . Exploded . | . . . . . . . Melee . | . . . . . . . Uniques/NPCs Destroyed . | . . . . . . . Combat | -11 -10 -9 -8 -7 -6 -6 -------- Run | Yrd Mat Mat Mat Fac Fac Ext Hostile Shots Fired 882 | . 78 131 250 26 61 336 Missed 268 | . 26 38 70 7 24 103 Damage Taken 6547 | . 425 916 2008 218 322 2658 Core 1346 | . 97 111 250 25 31 832 Absorbed by Shields 176 | . . . . . 118 58 Ignored by Resistances 1976 | . 132 276 585 65 123 795 Regen/Repaired (Parts) 112 | . . 31 81 . . . Core Remaining (%) 76 | 100 61 72 54 96 . . Volleys Fired 311 | . 29 78 133 23 25 23 Largest 3 | . 2 2 2 3 3 3 Hottest 118 | . 43 46 109 118 118 118 Shots Fired 644 | . 52 148 245 64 74 61 Gun 540 | . 52 148 142 64 74 60 Cannon 103 | . . . 103 . . . Launcher 1 | . . . . . . 1 Special . | . . . . . . . Kinetic 480 | . 52 148 140 46 50 44 Thermal 163 | . . . 105 18 24 16 Explosive 1 | . . . . . . 1 Electromagnetic . | . . . . . . . Robot Hit Streak 31 | . 16 16 23 12 25 31 Robot Miss Streak 8 | . 3 4 3 8 1 2 Penetration Max 1 | . . . . . 1 1 Secondary Targets 12 | . 2 3 1 2 3 1 Max Gunslinging Chain 1 | . 1 1 1 1 1 1 Shots Hit Robots 483 | . 39 115 174 36 64 55 Core Hits 231 | . 26 63 76 11 30 25 Critical Kills 2 | . . . . 1 1 . Critical Parts Destroyed 2 | . 1 1 . . . . Critical Strikes 17 | . 1 2 11 1 2 . Burn 9 | . . . 8 . 1 . Destroy 5 | . 1 2 . 1 1 . Blast 3 | . . . 3 . . . Melee Attacks 5 | . 4 . . . . 1 Impact 1 | . 1 . . . . . Slashing 1 | . . . . . . 1 Piercing . | . . . . . . . Sneak Attacks . | . . . . . . . Combat Hostiles . | . . . . . . . Follow-up Attacks . | . . . . . . . Damage Inflicted 9427 | . 656 1851 3646 703 1249 1322 Guns 7263 | . 656 1851 1746 703 1249 1058 Cannons 1895 | . . . 1880 . . 15 Explosions 249 | . . . . . . 249 Melee . | . . . . . . . Ramming 20 | . . . 20 . . . Kinetic 7011 | . 656 1851 2255 566 870 813 Thermal 2132 | . . . 1371 137 379 245 Explosive 249 | . . . . . . 249 Electromagnetic . | . . . . . . . Impact 15 | . . . . . . 15 Slashing . | . . . . . . . Piercing . | . . . . . . . Highest Corruption 1 | . 1 . . 1 . . Average Corruption 1 | . 1 . . 1 . . Corruption Purged . | . . . . . . . Corruption Blocked . | . . . . . . . Effects 5 | . 3 . . 2 . . Message Errors 1 | . . . . 1 . . Matter Fused 3 | . 2 . . 1 . . Data Loss (minor) 1 | . 1 . . . . . Overload Shots . | . . . . . . . Overflow Damage 84 | . . 5 79 . . . Projectiles 79 | . . . 79 . . . Explosions 5 | . . 5 . . . . Melee . | . . . . . . . Knockbacks 18 | . . . 18 . . . Impact . | . . . . . . . Kinetic 16 | . . . 16 . . . Secondary 2 | . . . 2 . . . Self-Inflicted Damage 76 | . . 76 . . . . Shots 1 | . . 1 . . . . Rammed . | . . . . . . . Targets Rammed 8 | . . . 8 . . . Kicked 8 | . . . 8 . . . Crushed . | . . . . . . . Highest Temperature 548 | . 16 96 548 65 62 382 Average Temperature 109 | . 4 30 143 26 34 153 Received Heat Transfer 2977 | . 237 432 1269 81 123 835 Effects 12 | . . . 12 . . . Shutdowns 4 | . . . 4 . . . Interference 5 | . . . 5 . . . Short Circuit 2 | . . . 2 . . . Damage (minor) 1 | . . . 1 . . . Siege Activations . | . . . . . . . Robots Corrupted . | . . . . . . . Combat Hostiles . | . . . . . . . Parts Fried . | . . . . . . . Impact Corruptions . | . . . . . . . Robots Melted . | . . . . . . . Combat Hostiles . | . . . . . . . Parts Melted 9 | . . . 8 . 1 . Heat Transferred 5402 | . . . 3626 259 962 555 Parts Sabotaged . | . . . . . . . Parts Stolen . | . . . . . . . Parts Stripped . | . . . . . . . Power Chain Reactions . | . . . . . . . Alert | -11 -10 -9 -8 -7 -6 -6 ------- Run | Yrd Mat Mat Mat Fac Fac Ext Peak Influence 512 | . 191 512 380 163 198 65 Initial 144 | . . 68 144 18 38 . Average 175 | . 76 316 202 82 59 16 Maximum Alert Level 2 | . . 2 1 . . . Low Security (%) 64 | 100 100 22 54 100 100 100 Level 1 27 | . . 40 45 . . . Level 2 7 | . . 36 . . . . Level 3 . | . . . . . . . Level 4 . | . . . . . . . Level 5 . | . . . . . . . High Security . | . . . . . . . Max Security . | . . . . . . . Squads Dispatched 15 | . 1 4 7 2 1 . Investigation 6 | . 1 1 3 1 . . Extermination 2 | . . . . 1 1 . Reinforcement 5 | . . 3 2 . . . Assault . | . . . . . . . Garrison 2 | . . . 2 . . . Intercept . | . . . . . . . Searches Triggered . | . . . . . . . Construction Impeded . | . . . . . . . Haulers Reinforced . | . . . . . . . Active Scanning Responses . | . . . . . . . Cargo Convoy Interrupts . | . . . . . . . Stealth | -11 -10 -9 -8 -7 -6 -6 --------- Run | Yrd Mat Mat Mat Fac Fac Ext Distress Signals 6 | . 1 2 1 . 1 1 Communications Jammed . | . . . . . . . Distress Signals . | . . . . . . . Times Spotted 145 | . 16 42 52 11 9 15 Peak Tracking Total 10 | . 6 6 6 3 5 10 Tactical Retreats 1 | . . . . . 1 . Traps | -11 -10 -9 -8 -7 -6 -6 ------- Run | Yrd Mat Mat Mat Fac Fac Ext Traps Triggered 2 | . 1 . 1 . . . Indirectly . | . . . . . . . Trap Hack Attempts . | . . . . . . . Triggered . | . . . . . . . Disarmed . | . . . . . . . Reprogrammed 1 | . . 1 . . . . Reused . | . . . . . . . Traps Extracted . | . . . . . . . Installed . | . . . . . . . Triggered . | . . . . . . . Machines | -11 -10 -9 -8 -7 -6 -6 ---------- Run | Yrd Mat Mat Mat Fac Fac Ext Machines Disabled 3 | . . 2 . . . 1 Max in Single Turn 2 | . . 2 . . . 1 Garrison Access 1 | . . . 1 . . . Machines Repaired . | . . . . . . . Machines Dismantled . | . . . . . . . Machines Sabotaged . | . . . . . . . Overloaded Fab Kills . | . . . . . . . Hacking | -11 -10 -9 -8 -7 -6 -6 --------- Run | Yrd Mat Mat Mat Fac Fac Ext Machines Accessed 33 | . 7 6 15 1 4 . Terminals 20 | . 5 4 10 . 1 . Fabricators 1 | . . . . . 1 . Repair Stations 2 | . . 1 1 . . . Recycling Units 7 | . 2 . 2 1 2 . Scanalyzers 2 | . . 1 1 . . . Garrison Access 1 | . . . 1 . . . Total Hacks 119 | . 21 25 61 3 9 . Successful 82 | . 14 16 47 1 4 . Failed 36 | . 7 9 13 2 5 . Catastrophic 5 | . 2 . 1 1 1 . Database Lockouts 1 | . . . 1 . . . Manual . | . . . . . . . Terminals 81 | . 14 19 45 . 3 . Fabricators 2 | . . . . . 2 . Repair Stations 4 | . . 2 2 . . . Recycling Units 21 | . 7 . 7 3 4 . Scanalyzers 10 | . . 4 6 . . . Garrison Access 1 | . . . 1 . . . Terminal Hacks 55 | . 11 10 32 . 2 . Record 22 | . 2 4 16 . . . Robot Analysis 1 | . . . 1 . . . Prototype ID Bank 3 | . . . 3 . . . Level Access Points 1 | . 1 . . . . . Emergency Access Points 2 | . . . 2 . . . Terminal Index 1 | . . . 1 . . . Alert Level 2 | . 1 1 . . . . Unreport Threat 2 | . . 1 . . 1 . Locate Traps 3 | . 2 . 1 . . . Reprogram Traps 1 | . . 1 . . . . Dispatch Records 1 | . 1 . . . . . Maintenance Status 1 | . 1 . . . . . Security Status 1 | . . . 1 . . . Transport Status 1 | . . . 1 . . . Recall Investigation 2 | . . 1 1 . . . Hauler Manifests 2 | . 1 . 1 . . . Zone Layout 9 | . 2 2 4 . 1 . Fabricator Hacks . | . . . . . . . Repair Station Hacks 4 | . . 2 2 . . . Scan Component 2 | . . 1 1 . . . Repair 2 | . . 1 1 . . . Recycling Unit Hacks 12 | . 3 . 6 1 2 . Process 1 | . . . 1 . . . Report Inventory 7 | . 2 . 3 1 1 . Retrieve Matter 1 | . . . 1 . . . Retrieve Components 3 | . 1 . 1 . 1 . Scanalyzer 10 | . . 4 6 . . . Insert Component 5 | . . 2 3 . . . Analyze 5 | . . 2 3 . . . Garrison Access Hacks 1 | . . . 1 . . . Seal Access 1 | . . . 1 . . . Unauthorized Hacks . | . . . . . . . Terminals . | . . . . . . . Fabricators . | . . . . . . . Repair Stations . | . . . . . . . Recycling Units . | . . . . . . . Scanalyzers . | . . . . . . . Garrison Access . | . . . . . . . Data Cores Recovered . | . . . . . . . Used . | . . . . . . . Hacking Detections 28 | . 7 6 11 1 3 . Full Trace Events 7 | . 2 1 3 1 . . Feedback Events . | . . . . . . . Feedback Blocked . | . . . . . . . Robot Schematics Acquired . | . . . . . . . Robots Built . | . . . . . . . Authchips . | . . . . . . . Time . | . . . . . . . Total Robot Build Rating . | . . . . . . . Part Schematics Acquired 5 | . . 2 3 . . . Parts Built . | . . . . . . . Authchips . | . . . . . . . Time . | . . . . . . . Total Part Build Rating . | . . . . . . . Parts Repaired 2 | . . 1 1 . . . Time 58 | . . 32 26 . . . Parts Recycled . | . . . . . . . Recycled Matter 93 | . . . 93 . . . Retrieved Matter 93 | . . . 93 . . . Retrieved Components 13 | . 2 . 10 . 1 . Parts Scanalyzed 5 | . . 2 3 . . . Part Schematics Acquired 5 | . . 2 3 . . . Parts Damaged 1 | . . . 1 . . . Bothacking | -11 -10 -9 -8 -7 -6 -6 ------------ Run | Yrd Mat Mat Mat Fac Fac Ext Used RIF Installer . | . . . . . . . Robots Hacked . | . . . . . . . Non-combat . | . . . . . . . Combat . | . . . . . . . Robot Hacks Applied . | . . . . . . . Relay Couplers Released . | . . . . . . . Fabnet Peak Effective % . | . . . . . . . Robots Rewired . | . . . . . . . Allies Hacked . | . . . . . . . Hacks Repelled . | . . . . . . . Allies | -11 -10 -9 -8 -7 -6 -6 -------- Run | Yrd Mat Mat Mat Fac Fac Ext Total Allies . | . . . . . . . Largest Group . | . . . . . . . Highest-Rated Group . | . . . . . . . Highest-Rated Ally . | . . . . . . . Total Orders . | . . . . . . . Ally Attacks . | . . . . . . . Total Damage . | . . . . . . . Kills . | . . . . . . . Allies Corrupted . | . . . . . . . Allies Melted . | . . . . . . . Intel | -11 -10 -9 -8 -7 -6 -6 ------- Run | Yrd Mat Mat Mat Fac Fac Ext Robot Analysis Total 1 | . . . 1 . . . Derelict Logs Recovered . | . . . . . . . Drone Launches . | . . . . . . . Drone Recoveries . | . . . . . . . Exploration | -11 -10 -9 -8 -7 -6 -6 ------------- Run | Yrd Mat Mat Mat Fac Fac Ext Turns Passed 5816 | 35 712 1188 2486 669 439 287 Spaces Moved 2537 | 28 340 468 1024 238 282 157 Core 16 | 11 . . . . . 5 Treads . | . . . . . . . Legs 2521 | 17 340 468 1024 238 282 152 Wheels . | . . . . . . . Hover . | . . . . . . . Flight . | . . . . . . . Fastest Speed 50 | 50 120 120 122 190 116 116 Average Speed 179 | 92 170 187 192 240 116 127 Slowest Speed 500 | 120 190 190 260 260 116 500 Overloaded Moves . | . . . . . . . Propulsion Burnouts . | . . . . . . . Robots Hopped . | . . . . . . . Cave-ins Triggered . | . . . . . . . Exploration Rate (%) 36 | 3 74 46 94 8 9 22 Regions Visited 6 Branch Regions 1 Pre-discovered Areas . | . . . . . . . Known Exits Taken 1 | . 1 . . . . . Unknown Exits Taken 5 | 1 . 1 1 1 1 . Scrap Searched . | . . . . . . . Spaces Dug 1 | . 1 . . . . . Terrain Destroyed 44 | . 1 24 10 . . 9 Melee 1 | . 1 . . . . . Projectile 11 | . . . 10 . . 1 AOE 32 | . . 24 . . . 8 Terrain Rammed . | . . . . . . . Walls Destroyed . | . . . . . . . Machines Disabled . | . . . . . . . Actions | -11 -10 -9 -8 -7 -6 -6 --------- Run | Yrd Mat Mat Mat Fac Fac Ext Total 3229 | 37 415 632 1298 293 350 204 Wait 159 | . 9 44 69 13 22 2 Move 2531 | 27 339 467 1023 237 281 157 Hop . | . . . . . . . Pick Up 74 | 5 16 19 17 8 6 3 Fast Attach 11 | . 1 . 10 . . . Attach 33 | 5 . 7 3 6 3 9 Detach . | . . . . . . . Swap 46 | . 10 7 12 4 6 7 Drop 51 | . 7 10 23 2 7 2 Fire 311 | . 29 78 133 23 25 23 Melee 5 | . 4 . . . . 1 Ram . | . . . . . . . Kick 8 | . . . 8 . . . Crush . | . . . . . . . Escape Stasis . | . . . . . . . Rewire . | . . . . . . . Trap . | . . . . . . . Miscellaneous . | . . . . . . . Route ------- -11/Scrapyard -10/Materials (discovered 5 exits: *Mat x3 / [*Min x2]) -9/Materials (discovered 2 exits: *Mat / [*Min]) -8/Materials (discovered 3 exits: *Fac x2 / [*Sto]) -7/Factory -6/Factory -6/Extension History --------- Turn | Location | Event 8 | -11/Scrapyard | Discovered new exit (range 15) 36 | -11/Scrapyard | Entered Materials 129 | -10/Materials | Discovered new exit (range 5) 252 | -10/Materials | Discovered new exit (range 10) 280 | -10/Materials | Discovered new exit (range 14) 318 | -10/Materials | Build established: Mutant 567 | -10/Materials | Identified exit to Materials 748 | -10/Materials | Entered another Materials area 748 | -9/Materials | Evolved 2 slots: Propulsion x1, Utility x1 1295 | -9/Materials | Repaired Particle Gun 1454 | -9/Materials | Discovered new exit (range 6) 1506 | -9/Materials | Build established: Scavenger-Mutant 1823 | -9/Materials | Build established: Mutant 1824 | -9/Materials | Discovered new exit (range 14) 1936 | -9/Materials | Entered another Materials area 1936 | -8/Materials | Evolved 2 slots: Power x1, Propulsion x1 2320 | -8/Materials | Discovered new exit (range 16) 2356 | -8/Materials | Build established: Scavenger-Mutant 3154 | -8/Materials | Garrison activated, responded to threat 3215 | -8/Materials | Lost 3 parts (1p2n) 3416 | -8/Materials | Discovered new exit (range 14) 3653 | -8/Materials | Repaired Aluminum Leg 3692 | -8/Materials | Central database locked down 3752 | -8/Materials | Discovered new exit (range 17) 4422 | -8/Materials | Entered Factory 4422 | -7/Factory | Evolved 2 slots: Utility x1, Weapon x1 4583 | -7/Factory | Discovered new exit (range 10) 4716 | -7/Factory | Build established: Scavenger-Tank 5091 | -7/Factory | Entered another Factory area 5091 | -6/Factory | Evolved 2 slots: Propulsion x1, Utility x1 5518 | -6/Factory | Discovered new exit (range 12) 5530 | -6/Factory | Entered Extension 5734 | -6/Extension | Spotted B-75 Beast 5800 | -6/Extension | Spotted B-75 Beast 5804 | -6/Extension | Core integrity fell below 50% 5814 | -6/Extension | Core integrity fell below 20% 5817 | -6/Extension | Destroyed by B-75 Beast with Magnetic Acceleration Cannon Last Messages --------------- 05788_ Imp. Titanium Leg destroyed. 05790_ VSS Leg destroyed. 05790_ Enh. Autogun destroyed. 05793_ Lgt. Deuterium Engine destroyed. 05794_ Critical hit (Burn: +37). 05796_ Power Amplifier destroyed. 05796_ Knocked back. 05797_ K-01 Serf suffers critical hit (Destroy). 05800_ U-05 Engineer lays Concrete. 05809_ Acquired 24 matter. 05810_ U-05 Engineer lays Concrete. 05810_ Critical hit (Burn: +37). 05810_ Katana destroyed. 05810_ Imp. Cryofiber Web destroyed. 05810_ Knocked back. 05812_ U-05 Engineer lays Concrete. 05813_ Structural Scanner destroyed. 05814_ U-05 Engineer lays Concrete. 05816_ Chainsword destroyed. 05817_ U-05 Engineer lays Concrete. Map ----- +----------------------------------------------------+ | ?????????????????????????????????????????????????? | | ?????????????????????????????????????????????????? | | ?????????????????????????????????????????????????? | | ?????????????????????????????????????????????????? | | ?????????????????????????????????????????????????? | | ?????????????????????????????????????????????????? | | ?????????????????????????????????????????????????? | | ?????????????????????????????????????????????????? | | ?????????????????????????????????????????????????? | | ?????????????????????????????????????????????????? | | ?????????????????????????????????????????????????? | | ?????????????????????????????????????????????????? | | ?????????????????????????????????????????????????? | | ?????????????????????????????????????????????????? | | ?????????????????????????????????????????????????? | | ?????????????????????????????????????????????????? | | ???????????????????????????????????"" ???????????? | | ?????????????????????????????????? " ???????????? | | ???????????????????????????##### ??????????? | | ################################ ??????????? | | ############################ % R??????????? | | [%!% ?????????? | | g BB[ u ?????????? | | %%%%%Y=BB*= ????????? | | u k % !g%[w%! ????????? | | R % |@YR !%%| ????????? | | ###+#####+##############;;# ; BB ????????? | | ##=[ #### ################### ## BB ????????? | | ## == ##??????????########## ??? ?????????? | | ##= #######?????????????????????????????????????? | | ############?????????????????????????????????????? | | # #####??????????????????????????????????????????? | | ?????????????????????????????????????????????????? | | ?????????????????????????????????????????????????? | | | | | | | | | | | | | | | | | | | | | | | | | | | | | | | | | +----------------------------------------------------+ Best States ------------- Heat Dissipation 59 Energy Generation 32 Energy Capacity 360 Matter Stores 300 Matter Capacity 300 Sight Range 16 Terrain Scan Density 10 Power Amplification 20 Base Temperature (-) 150 Armor Coverage 300 Resistance: KI 20 Resistance: TH 20 Resistance: EX 20 Resistance: EM 20 Resistance: I 20 Resistance: S 20 Resistance: P 20 Evasion (%) 55 Offensive Hacking 10 Item Schematics ----------------- Lrg. Matter Pod | -9/Materials | Scanalyzed Hrd. Light Armor Plating | -9/Materials | Scanalyzed Cooling System | -8/Materials | Scanalyzed Lrg. Battery | -8/Materials | Scanalyzed Matter Filter | -8/Materials | Scanalyzed Robot Schematics ------------------ None Fabricated ------------ Nothing Alien Tech Used ----------------- None Achievements -------------- None Challenges ------------ None Game ------ Seed TachyonGhostKatana Manual? 0 Play Time 01:07:04 Cumulative 243.8 hours Start 2024.07.04 @ 01:21:10 End 2024.07.06 @ 17:29:11 Sessions 5 Manual Loads 0 Difficulty Adventurer Special Mode None Game No. 182 Rogue 0 Adventurer 119 Explorer 63 Win Type - Total 0 Types 0/0/0/0/0/0/0/0/0 Lore% 53 Gallery% 65 Achievement% 51 Wizard Run 0 Options --------- Layout 0 ASCII 0 Keyboard 0 Movement Mouse Keybinds 0 Fullscreen 1 Font 24/Smallcaps Map View 76x50 Zoom Use 0% Tactical HUD 1 Map Filters NONE Filters NONE Steam 1 RUN: 973d3d2b-3292-41bf-9cb6-1518b5b79417